[Event "British Championship 2024"]
[Site "Hull"]
[Date "2024.08.01"]
[Round "6.11"]
[White "Grieve, Harry"]
[Black "Merriman, John"]
[Result "1-0"]
[Annotator "TA"]
[ECO "C11"]
[WhiteElo "2470"]
[BlackElo "2251"]
[PlyCount "45"]
[EventDate "2024.07.31"]
[EventCountry "GBR"]
[SourceTitle "playchess.com"]
[Source "ChessBase"]
[SourceQuality "1"]
[TimeControl "40/5400+30:1800+30"]

{[%evp 13,45,0,14,18,31,23,18,19,31,25,24,10,11,12,75,68,91,51,92,57,301,279,847,754,1163,1153,1630,1596,1849,1843,29990,29990,29998,29999]} 1. e4 {[%emt 0:00:01][%cal Be2e4,Be4e5][%mdl 32]} e6 {[%emt 0:03:14]} 2. d4 {[%emt 0:00:04]} d5 {[%emt 0:00:16]} 3. Nc3 {[%emt 0:00:04]} Nf6 {[%emt 0:00:36]} 4. e5 {[%emt 0:00:04]} Nfd7 {[%emt 0:00:05]} 5. f4 {[%emt 0:00:03]} c5 {[%emt 0:00:05]} 6. Nf3 {[%emt 0:00:04]} Nc6 {[%emt 0:00:06]} 7. Be3 {[%emt 0:00:03]} a6 {[%emt 0:00:43]} 8. Ne2 {[%emt 0:00:07]} b5 {[%emt 0:10:07]} 9. c3 {[%emt 0:00:06]} b4 {[%emt 0:03:02]} 10. cxb4 {[%emt 0:00:07] The position is equal.} cxd4 {[%emt 0:06:16]} 11. Nexd4 {[%emt 0:00:05]} Bxb4+ {[%emt 0:00:54]} 12. Kf2 {[%emt 0:00:03]} Nxd4 {[%emt 0:03:26]} 13. Bxd4 {[%emt 0:00:05]} a5 {[%emt 0:11:12]} (13... O-O $11) 14. Rc1 $16 {[%emt 0:04:19]} Be7 {[%emt 0:09:58]} 15. h4 {[%emt 0:05:19]} f6 {[%emt 0:07:10]} 16. Bd3 {[%emt 0:15:08] And now g3 would win. White has more active pieces.} f5 $2 {[%emt 0:10:40] Loses the game.} (16... O-O $14) 17. Ng5 $18 {[%emt 0:07:47]} Nb8 $2 {[%emt 0:07:05]} (17... Bxg5 18. hxg5 Nf8) 18. g4 {[%emt 0:13:04] [#] Black must now prevent gxf5.} O-O {[%emt 0:01:54]} 19. gxf5 {[%emt 0:01:20] Threatening mate with Qh5.} exf5 {[%emt 0:01:41]} 20. Qh5 {[%emt 0:03:03][%csl Gg5][%cal Rh5h7]} h6 {[%emt 0:00:41] [#]} 21. Qg6 $1 {[%emt 0:00:48][%csl Gg5][%cal Rg6h7]} hxg5 {[%emt 0:01:38]} (21... Bxg5 22. hxg5) 22. hxg5 {[%emt 0:01:09]} Re8 {[%emt 0:00:54]} 23. e6 {[%emt 0:00:37] Weighted Error Value: White=0.11 (very precise) /Black=0.76.  Loses game:     	---       	Black=1      Mistake:       	---       	Black=2      Inaccurate:     	White=2     	Black=2      OK:         	White=5     	Black=2      Best:        	---       	Black=1} 1-0

[Event "British Championship 2024"]
[Site "Hull"]
[Date "2024.08.01"]
[Round "6.12"]
[White "Merry, Alan B"]
[Black "Boswell, Jacob Connor"]
[Result "1-0"]
[Annotator "RC"]
[ECO "E04"]
[WhiteElo "2429"]
[BlackElo "2274"]
[PlyCount "59"]
[EventDate "2024.07.31"]
[EventCountry "GBR"]
[SourceTitle "playchess.com"]
[Source "ChessBase"]
[SourceQuality "1"]
[TimeControl "40/5400+30:1800+30"]

1. d4 {[%emt 1:31:00]} d5 {[%emt 0:08:54]} 2. c4 {[%emt 0:00:00]} e6 {[%emt 0:00:06]} 3. Nf3 {[%emt 0:00:00]} Nf6 {[%emt 0:00:06]} 4. g3 {[%emt 0:00:00]} dxc4 {[%emt 0:00:53]} 5. Bg2 {[%emt 0:00:00]} a6 {[%emt 0:00:25]} 6. O-O {[%emt 0:00:00]} Nc6 {[%emt 0:00:05]} 7. e3 {[%emt 0:00:00]} Rb8 {[%emt 0:00:46]} 8. Nfd2 {[%emt 0:00:00]} e5 {[%emt 0:00:30]} 9. Bxc6+ {[%emt 0:00:00]} bxc6 {[%emt 0:00:07]} 10. dxe5 {[%emt 0:00:00]} Ng4 {[%emt 0:00:23]} 11. Nxc4 {[%emt 0:00:00]} Be6 {[%emt 0:00:53]} 12. Nbd2 {[%emt 0:00:00]} Bb4 {[%emt 0:01:07]} 13. Qc2 {[%emt 0:00:00]} h5 {[%emt 0:00:17]} 14. b3 {[%emt 0:00:00]} h4 {[%emt 0:02:05]} 15. Nf3 {[%emt 0:00:00]} hxg3 {[%emt 0:01:34]} 16. fxg3 {[%emt 0:00:00]} Bc5 {[%emt 0:01:59]} 17. h4 {[%emt 0:00:00]} Rh5 {[%emt 0:08:17]} 18. Kg2 {[%emt 0:00:00]} g5 {[%emt 0:37:04]} 19. hxg5 {[%emt 0:00:00]} Qxg5 {[%emt 0:30:39]} 20. Nxg5 {[%emt 0:00:00]} Rh2+ {[%emt 0:00:02]} 21. Kf3 {[%emt 0:00:48]} Rxc2 {[%emt 0:00:01]} 22. Nxe6 {[%emt 0:00:22]} Nh2+ {[%emt 0:00:02]} 23. Ke4 {[%emt 0:00:16]} Nxf1 {[%emt 0:03:01]} 24. Nxc5 {[%emt 0:01:01]} Rd8 {[%emt 0:00:47]} 25. Bb2 {[%emt 0:03:49]} Rf2 {[%emt 0:02:14]} 26. Bd4 {[%emt 0:02:21]} Nxg3+ {[%emt 0:00:03]} 27. Kd3 {[%emt 0:00:06]} Rf3 {[%emt 0:01:08]} 28. Nd2 {[%emt 0:02:14]} Rf5 {[%emt 0:00:20]} 29. Rg1 {[%emt 0:00:57]} Rxe5 {[%emt 0:00:33]} 30. Rxg3 {[%emt 0:00:52]} 1-0

[Event "British Championship 2024"]
[Site "Hull"]
[Date "2024.08.01"]
[Round "6.13"]
[White "Trent, Lawrence"]
[Black "Golding, Alex"]
[Result "1/2-1/2"]
[Annotator "RC"]
[ECO "A13"]
[WhiteElo "2416"]
[BlackElo "2296"]
[PlyCount "90"]
[EventDate "2024.07.31"]
[EventCountry "GBR"]
[SourceTitle "playchess.com"]
[Source "ChessBase"]
[SourceQuality "1"]
[TimeControl "40/5400+30:1800+30"]

1. c4 {[%emt 0:03:30]} e6 {[%emt 0:02:19]} 2. Nf3 {[%emt 0:01:26]} d5 {[%emt 0:00:10]} 3. e3 {[%emt 0:00:06]} Nf6 {[%emt 0:00:10]} 4. b3 {[%emt 0:00:30]} c5 {[%emt 0:00:05]} 5. Bb2 {[%emt 0:00:22]} Nc6 {[%emt 0:00:05]} 6. cxd5 {[%emt 0:00:28]} exd5 {[%emt 0:00:39]} 7. Bb5 {[%emt 0:00:11]} Bd7 {[%emt 0:03:54]} 8. O-O {[%emt 0:00:32]} Be7 {[%emt 0:02:06]} 9. d4 {[%emt 0:00:24]} O-O {[%emt 0:00:40]} 10. dxc5 {[%emt 0:01:29]} Bxc5 {[%emt 0:00:53]} 11. Nc3 {[%emt 0:00:11]} a6 {[%emt 0:01:01]} 12. Bxc6 {[%emt 0:06:50]} Bxc6 {[%emt 0:01:52]} 13. Ne2 {[%emt 0:08:37]} Re8 {[%emt 0:05:00]} 14. Rc1 {[%emt 0:00:49]} Bd6 {[%emt 0:00:28]} 15. Ng3 {[%emt 0:02:33]} Bb5 {[%emt 0:06:12]} 16. Re1 {[%emt 0:04:06]} Bb4 {[%emt 0:00:23]} 17. Bc3 {[%emt 0:03:38]} Ba3 {[%emt 0:00:05]} 18. Rc2 {[%emt 0:00:24]} Ne4 {[%emt 0:00:12]} 19. Bb2 {[%emt 0:05:52]} Bf8 {[%emt 0:05:43]} 20. a4 {[%emt 0:10:54]} Bc6 {[%emt 0:00:07]} 21. Ne5 {[%emt 0:01:04]} Nxg3 {[%emt 0:01:10]} 22. hxg3 {[%emt 0:03:40]} Re6 {[%emt 0:00:52]} 23. Qd4 {[%emt 0:12:58]} Be8 {[%emt 0:02:15]} 24. Rec1 {[%emt 0:02:41]} f6 {[%emt 0:01:17]} 25. Nf3 {[%emt 0:00:08]} Rc6 {[%emt 0:03:31]} 26. Qd1 {[%emt 0:01:05]} Rac8 {[%emt 0:00:46]} 27. Nd4 {[%emt 0:00:26]} Rxc2 {[%emt 0:00:10]} 28. Rxc2 {[%emt 0:00:01]} Bg6 {[%emt 0:00:13]} 29. Rxc8 {[%emt 0:04:29]} Qxc8 {[%emt 0:00:06]} 30. Qd2 {[%emt 0:00:46]} h5 {[%emt 0:00:59]} 31. Qc1 {[%emt 0:06:44]} Qxc1+ {[%emt 0:01:07]} 32. Bxc1 {[%emt 0:00:02]} Bb4 {[%emt 0:00:24]} 33. f4 {[%emt 0:13:52]} Be1 {[%emt 0:02:39]} 34. f5 {[%emt 0:00:22]} Be8 {[%emt 0:00:36]} 35. Kh2 {[%emt 0:01:46]} Bd7 {[%emt 0:00:27]} 36. Kh3 {[%emt 0:01:24]} g5 {[%emt 0:01:08]} 37. g4 {[%emt 0:00:10]} h4 {[%emt 0:00:13]} 38. Bb2 {[%emt 0:00:35]} Kf7 {[%emt 0:00:38]} 39. Nc2 {[%emt 0:03:00]} Bd2 {[%emt 0:02:27]} 40. Ba3 {[%emt 0:01:24]} b5 {[%emt 0:00:36]} 41. axb5 {[%emt 0:04:27]} Bxb5 {[%emt 0:00:09]} 42. Bb4 {[%emt 0:08:39]} Bc1 {[%emt 0:00:48]} 43. Bc3 {[%emt 0:00:14]} Be2 {[%emt 0:00:58]} 44. Nb4 {[%emt 0:02:07]} Bd1 {[%emt 0:00:07]} 45. Bd4 {[%emt 0:07:45]} Bxb3 {[%emt 0:01:11]} 1/2-1/2

[Event "British Championship 2024"]
[Site "Hull"]
[Date "2024.08.01"]
[Round "6.14"]
[White "Hebden, Mark L"]
[Black "Banerjee, Supratit"]
[Result "1/2-1/2"]
[Annotator "RC"]
[ECO "D35"]
[WhiteElo "2398"]
[BlackElo "2115"]
[PlyCount "124"]
[EventDate "2024.07.31"]
[EventCountry "GBR"]
[SourceTitle "playchess.com"]
[Source "ChessBase"]
[SourceQuality "1"]
[TimeControl "40/5400+30:1800+30"]

1. d4 {[%emt 0:00:27]} d5 {[%emt 0:00:05]} 2. c4 {[%emt 0:00:41]} e6 {[%emt 0:00:14]} 3. Nc3 {[%emt 0:00:38]} Be7 {[%emt 0:00:29]} 4. cxd5 {[%emt 0:01:47]} exd5 {[%emt 0:00:22]} 5. Bf4 {[%emt 0:00:07]} c6 {[%emt 0:00:11]} 6. e3 {[%emt 0:01:50]} Nf6 {[%emt 0:00:17]} 7. Bd3 {[%emt 0:01:17]} O-O {[%emt 0:00:54]} 8. h3 {[%emt 0:01:17]} Re8 {[%emt 0:00:34]} 9. Nf3 {[%emt 0:01:07]} Nbd7 {[%emt 0:00:10]} 10. O-O {[%emt 0:00:21]} Nf8 {[%emt 0:00:07]} 11. Ne5 {[%emt 0:02:46]} N6d7 {[%emt 0:00:25]} 12. Nf3 {[%emt 0:00:43]} Nf6 {[%emt 0:02:51]} 13. Qc2 {[%emt 0:01:43]} Ng6 {[%emt 0:03:04]} 14. Bh2 {[%emt 0:00:43]} Bd6 {[%emt 0:00:20]} 15. Bxd6 {[%emt 0:00:08]} Qxd6 {[%emt 0:00:08]} 16. Rab1 {[%emt 0:00:06]} Bd7 {[%emt 0:03:02]} 17. b4 {[%emt 0:01:19]} Rac8 {[%emt 0:00:40]} 18. Rfc1 {[%emt 0:01:52]} Qe7 {[%emt 0:04:32]} 19. Nd2 {[%emt 0:10:48]} Nh5 {[%emt 0:08:02]} 20. Bf5 {[%emt 0:07:14]} Rcd8 {[%emt 0:09:05]} 21. Bxd7 {[%emt 0:08:39]} Qxd7 {[%emt 0:02:43]} 22. b5 {[%emt 0:01:37]} Nh4 {[%emt 0:08:16]} 23. Qd1 {[%emt 0:01:08]} Nf6 {[%emt 0:07:40]} 24. bxc6 {[%emt 0:00:45]} bxc6 {[%emt 0:01:30]} 25. Na4 {[%emt 0:04:46]} Re7 {[%emt 0:09:16]} 26. Nc5 {[%emt 0:07:01]} Qe8 {[%emt 0:02:53]} 27. Nf3 {[%emt 0:03:01]} Ng6 {[%emt 0:02:55]} 28. Qc2 {[%emt 0:05:39]} Rc8 {[%emt 0:05:51]} 29. Rb3 {[%emt 0:00:55]} Nd7 {[%emt 0:04:09]} 30. Nxd7 {[%emt 0:03:25]} Rxd7 {[%emt 0:01:43]} 31. Rc3 {[%emt 0:00:30]} Rdc7 {[%emt 0:00:46]} 32. Qa4 {[%emt 0:00:33]} h6 {[%emt 0:01:04]} 33. R1c2 {[%emt 0:01:47]} Qe6 {[%emt 0:00:30]} 34. Ne1 {[%emt 0:00:30]} Nh4 {[%emt 0:00:30]} 35. Qa6 {[%emt 0:00:30]} Qg6 {[%emt 0:00:30]} 36. Kf1 {[%emt 0:00:30]} Qe6 {[%emt 0:00:30]} 37. Rc1 {[%emt 0:00:30]} Kh8 {[%emt 0:00:30]} 38. Qe2 {[%emt 0:00:30]} Nf5 {[%emt 0:00:30]} 39. Nd3 {[%emt 0:00:30]} Nd6 {[%emt 0:00:30]} 40. R3c2 {[%emt 0:00:30]} Nc4 {[%emt 0:00:30]} 41. Nc5 {[%emt 0:30:30]} Qf6 {[%emt 0:30:30]} 42. Nb3 {[%emt 0:00:30]} Re8 {[%emt 0:00:30]} 43. Kg1 {[%emt 0:00:30]} Re6 {[%emt 0:00:30]} 44. Rc3 {[%emt 0:00:30]} Qf5 {[%emt 0:00:30]} 45. Nd2 {[%emt 0:00:30]} Nxd2 {[%emt 0:00:30]} 46. Qxd2 {[%emt 0:00:30]} Rg6 {[%emt 0:00:30]} 47. Qc2 {[%emt 0:00:30]} Qxc2 {[%emt 0:00:30]} 48. R1xc2 {[%emt 0:00:30]} Rd6 {[%emt 0:00:30]} 49. Rb2 {[%emt 0:00:30]} Kh7 {[%emt 0:00:30]} 50. Rb8 {[%emt 0:00:30]} Kg6 {[%emt 0:00:30]} 51. g4 {[%emt 0:00:30]} h5 {[%emt 0:00:30]} 52. Kg2 {[%emt 0:00:30]} hxg4 {[%emt 0:00:30]} 53. hxg4 {[%emt 0:00:30]} Kf6 {[%emt 0:00:30]} 54. Ra3 {[%emt 0:00:30]} g6 {[%emt 0:00:30]} 55. Ra6 {[%emt 0:00:30]} Re6 {[%emt 0:00:30]} 56. Kg3 {[%emt 0:00:30]} c5 {[%emt 0:00:30]} 57. Rxe6+ {[%emt 0:00:30]} Kxe6 {[%emt 0:00:30]} 58. dxc5 {[%emt 0:00:30]} Rxc5 {[%emt 0:00:30]} 59. Rb2 {[%emt 0:00:30]} Rc4 {[%emt 0:00:30]} 60. f4 {[%emt 0:00:30]} Rc3 {[%emt 0:00:30]} 61. Kf2 {[%emt 0:00:30]} Ra3 {[%emt 0:00:30]} 62. Rd2 {[%emt 0:00:30]} f6 {[%emt 0:00:30]} 1/2-1/2

[Event "British Championship 2024"]
[Site "Hull"]
[Date "2024.08.01"]
[Round "6.15"]
[White "Salmons, Calum"]
[Black "Ledger, Andrew J"]
[Result "0-1"]
[Annotator "RC"]
[ECO "B17"]
[WhiteElo "1999"]
[BlackElo "2334"]
[PlyCount "110"]
[EventDate "2024.07.31"]
[EventCountry "GBR"]
[SourceTitle "playchess.com"]
[Source "ChessBase"]
[SourceQuality "1"]
[TimeControl "40/5400+30:1800+30"]

1. e4 {[%emt 0:04:46]} c6 {[%emt 0:00:29]} 2. d4 {[%emt 0:00:10]} d5 {[%emt 0:00:05]} 3. Nc3 {[%emt 0:00:04]} dxe4 {[%emt 0:00:10]} 4. Nxe4 {[%emt 0:00:13]} Nd7 {[%emt 0:01:02]} 5. Ng5 {[%emt 0:02:02]} h6 {[%emt 0:00:23]} 6. N5f3 {[%emt 0:15:06]} Ngf6 {[%emt 0:04:21]} 7. Bd3 {[%emt 0:07:52]} e6 {[%emt 0:01:05]} 8. Ne2 {[%emt 0:02:52]} Bd6 {[%emt 0:06:43]} 9. Bf4 {[%emt 0:04:32]} Bxf4 {[%emt 0:02:49]} 10. Nxf4 {[%emt 0:00:07]} O-O {[%emt 0:02:08]} 11. Qd2 {[%emt 0:05:54]} c5 {[%emt 0:02:10]} 12. c3 {[%emt 0:11:23]} cxd4 {[%emt 0:09:43]} 13. cxd4 {[%emt 0:00:14]} Qc7 {[%emt 0:02:11]} 14. Rc1 {[%emt 0:05:25]} Qd6 {[%emt 0:00:08]} 15. O-O {[%emt 0:01:18]} b6 {[%emt 0:00:50]} 16. Rfe1 {[%emt 0:01:00]} Bb7 {[%emt 0:06:33]} 17. Ne5 {[%emt 0:01:13]} g5 {[%emt 0:11:25]} 18. Nh3 {[%emt 0:08:02]} Qd5 {[%emt 0:06:17]} 19. f3 {[%emt 0:01:07]} Qxd4+ {[%emt 0:07:49]} 20. Kh1 {[%emt 0:00:11]} Kg7 {[%emt 0:00:53]} 21. Rc4 {[%emt 0:07:03]} Qd6 {[%emt 0:01:23]} 22. Nxd7 {[%emt 0:05:15]} Qxd7 {[%emt 0:03:59]} 23. Qc3 {[%emt 0:00:27]} Rac8 {[%emt 0:00:57]} 24. Bb1 {[%emt 0:05:27]} Rxc4 {[%emt 0:01:47]} 25. Qxc4 {[%emt 0:00:36]} Qd2 {[%emt 0:00:45]} 26. Qe2 {[%emt 0:02:07]} Qxe2 {[%emt 0:00:29]} 27. Rxe2 {[%emt 0:00:01]} Rd8 {[%emt 0:01:17]} 28. Nf2 {[%emt 0:02:02]} Rd4 {[%emt 0:00:31]} 29. Kg1 {[%emt 0:01:15]} Nd5 {[%emt 0:07:15]} 30. Be4 {[%emt 0:01:17]} Nf4 {[%emt 0:01:29]} 31. Rc2 {[%emt 0:00:39]} Bxe4 {[%emt 0:02:07]} 32. Nxe4 {[%emt 0:00:21]} Rd1+ {[%emt 0:03:45]} 33. Kf2 {[%emt 0:00:08]} Rb1 {[%emt 0:00:23]} 34. b3 {[%emt 0:04:02]} Nd3+ {[%emt 0:01:31]} 35. Kg3 {[%emt 0:00:19]} f5 {[%emt 0:03:13]} 36. Nf2 {[%emt 0:01:50]} f4+ {[%emt 0:03:46]} 37. Kh3 {[%emt 0:00:01]} Rc1 {[%emt 0:01:26]} 38. Rd2 {[%emt 0:00:02]} Nxf2+ {[%emt 0:00:21]} 39. Rxf2 {[%emt 0:00:01]} Kg6 {[%emt 0:00:57]} 40. Rd2 {[%emt 0:01:47]} Rc3 {[%emt 0:02:02]} 41. Rd7 {[%emt 0:08:54]} h5 {[%emt 0:01:46]} 42. Rxa7 {[%emt 0:03:28]} g4+ {[%emt 0:00:07]} 43. Kh4 {[%emt 0:00:06]} gxf3 {[%emt 0:00:04]} 44. gxf3 {[%emt 0:00:09]} Rxf3 {[%emt 0:00:05]} 45. b4 {[%emt 0:04:02]} Kf5 {[%emt 0:01:31]} 46. a4 {[%emt 0:01:46]} e5 {[%emt 0:01:41]} 47. a5 {[%emt 0:00:48]} bxa5 {[%emt 0:00:07]} 48. bxa5 {[%emt 0:00:08]} Ra3 {[%emt 0:00:38]} 49. a6 {[%emt 0:00:26]} Ke4 {[%emt 0:00:53]} 50. Kxh5 {[%emt 0:01:13]} Kf3 {[%emt 0:03:17]} 51. Re7 {[%emt 0:01:30]} e4 {[%emt 0:00:05]} 52. a7 {[%emt 0:00:13]} e3 {[%emt 0:00:19]} 53. Kg5 {[%emt 0:00:15]} Ra5+ {[%emt 0:00:06]} 54. Kh4 {[%emt 0:02:36]} e2 {[%emt 0:00:30]} 55. h3 {[%emt 0:00:18]} Rxa7 {[%emt 0:00:07]} 0-1

[Event "British Championship 2024"]
[Site "Hull"]
[Date "2024.08.01"]
[Round "6.16"]
[White "Pert, Richard G"]
[Black "Williams, Simon K"]
[Result "1/2-1/2"]
[Annotator "RC"]
[ECO "A49"]
[WhiteElo "2415"]
[BlackElo "2450"]
[PlyCount "22"]
[EventDate "2024.07.31"]
[EventCountry "GBR"]
[SourceTitle "playchess.com"]
[Source "ChessBase"]
[SourceQuality "1"]
[TimeControl "40/5400+30:1800+30"]

1. d4 {[%emt 0:00:18]} Nf6 {[%emt 0:00:19]} 2. Nf3 {[%emt 0:00:12]} g6 {[%emt 0:01:19]} 3. g3 {[%emt 0:00:06]} Bg7 {[%emt 0:00:31]} 4. Bg2 {[%emt 0:00:04]} d6 {[%emt 0:01:20]} 5. O-O {[%emt 0:00:12]} O-O {[%emt 0:00:33]} 6. Nc3 {[%emt 0:01:46]} c6 {[%emt 0:09:56]} 7. e4 {[%emt 0:04:05]} Bg4 {[%emt 0:04:50]} 8. h3 {[%emt 0:02:39]} Bxf3 {[%emt 0:00:10]} 9. Qxf3 {[%emt 0:00:28]} Nfd7 {[%emt 0:04:40]} 10. Be3 {[%emt 0:13:39]} Qb6 {[%emt 0:03:22]} 11. Qd1 {[%emt 0:27:50]} Qxb2 {[%emt 0:09:02]} 1/2-1/2

[Event "British Championship 2024"]
[Site "Hull"]
[Date "2024.08.01"]
[Round "6.17"]
[White "Villiers, Thomas"]
[Black "Willow, Jonah B"]
[Result "1/2-1/2"]
[Annotator "RC"]
[ECO "D30"]
[WhiteElo "2229"]
[BlackElo "2422"]
[PlyCount "44"]
[EventDate "2024.07.31"]
[EventCountry "GBR"]
[SourceTitle "playchess.com"]
[Source "ChessBase"]
[SourceQuality "1"]
[TimeControl "40/5400+30:1800+30"]

1. d4 {[%emt 0:00:01]} Nf6 {[%emt 0:01:05]} 2. c4 {[%emt 0:00:29]} e6 {[%emt 0:00:51]} 3. Nf3 {[%emt 0:00:25]} d5 {[%emt 0:00:17]} 4. e3 {[%emt 0:00:49]} Nbd7 {[%emt 0:02:16]} 5. Nbd2 {[%emt 0:02:57]} a6 {[%emt 0:02:03]} 6. Be2 {[%emt 0:00:37]} b6 {[%emt 0:00:31]} 7. O-O {[%emt 0:00:56]} Bb7 {[%emt 0:00:22]} 8. b3 {[%emt 0:01:04]} Bd6 {[%emt 0:00:45]} 9. Bb2 {[%emt 0:00:15]} O-O {[%emt 0:00:07]} 10. Qc2 {[%emt 0:02:29]} Rc8 {[%emt 0:04:51]} 11. Rac1 {[%emt 0:01:35]} c5 {[%emt 0:05:28]} 12. Qb1 {[%emt 0:03:54]} Re8 {[%emt 0:03:21]} 13. Rfd1 {[%emt 0:04:05]} Qe7 {[%emt 0:02:08]} 14. Ne5 {[%emt 0:06:41]} Nf8 {[%emt 0:03:33]} 15. Bf3 {[%emt 0:03:25]} Ng6 {[%emt 0:05:20]} 16. Nxg6 {[%emt 0:09:12]} hxg6 {[%emt 0:00:06]} 17. h3 {[%emt 0:05:43]} cxd4 {[%emt 0:04:03]} 18. Bxd4 {[%emt 0:00:41]} e5 {[%emt 0:17:25]} 19. Bb2 {[%emt 0:04:38]} Bb8 {[%emt 0:08:30]} 20. cxd5 {[%emt 0:00:59]} Nxd5 {[%emt 0:01:01]} 21. Rxc8 {[%emt 0:01:32]} Rxc8 {[%emt 0:00:03]} 22. Nc4 {[%emt 0:00:15]} Nc3 {[%emt 0:10:56]} 1/2-1/2

[Event "British Championship 2024"]
[Site "Hull"]
[Date "2024.08.01"]
[Round "6.18"]
[White "Sivanandan, Bodhana"]
[Black "Motwani, Paul"]
[Result "1/2-1/2"]
[Annotator "RC"]
[ECO "B27"]
[WhiteElo "2110"]
[BlackElo "2414"]
[PlyCount "118"]
[EventDate "2024.07.31"]
[EventCountry "GBR"]
[SourceTitle "playchess.com"]
[Source "ChessBase"]
[SourceQuality "1"]
[TimeControl "40/5400+30:1800+30"]

1. e4 {[%emt 0:01:12]} c5 {[%emt 0:00:18]} 2. Nf3 {[%emt 0:00:31]} g6 {[%emt 0:00:14]} 3. c3 {[%emt 0:00:34]} Bg7 {[%emt 0:00:35]} 4. d4 {[%emt 0:01:04]} cxd4 {[%emt 0:00:22]} 5. cxd4 {[%emt 0:00:46]} d5 {[%emt 0:00:30]} 6. e5 {[%emt 0:01:31]} Nc6 {[%emt 0:03:59]} 7. Nc3 {[%emt 0:01:28]} Bg4 {[%emt 0:03:24]} 8. Bb5 {[%emt 0:03:31]} e6 {[%emt 0:07:15]} 9. h3 {[%emt 0:07:22]} Bxf3 {[%emt 0:00:23]} 10. Qxf3 {[%emt 0:00:29]} Nge7 {[%emt 0:01:17]} 11. O-O {[%emt 0:05:22]} O-O {[%emt 0:03:08]} 12. Be3 {[%emt 0:06:04]} f6 {[%emt 0:09:03]} 13. exf6 {[%emt 0:04:25]} Bxf6 {[%emt 0:00:42]} 14. Qg4 {[%emt 0:01:25]} Nf5 {[%emt 0:02:01]} 15. Bxc6 {[%emt 0:03:45]} bxc6 {[%emt 0:00:16]} 16. Na4 {[%emt 0:00:31]} Re8 {[%emt 0:14:21]} 17. Rac1 {[%emt 0:08:06]} Rc8 {[%emt 0:06:13]} 18. Rfd1 {[%emt 0:03:57]} Qe7 {[%emt 0:04:14]} 19. b3 {[%emt 0:02:39]} Qg7 {[%emt 0:04:47]} 20. Nc5 {[%emt 0:03:48]} h5 {[%emt 0:03:11]} 21. Qf4 {[%emt 0:08:56]} e5 {[%emt 0:02:53]} 22. dxe5 {[%emt 0:03:43]} Bxe5 {[%emt 0:00:26]} 23. Qf3 {[%emt 0:01:12]} Nxe3 {[%emt 0:00:31]} 24. fxe3 {[%emt 0:00:50]} Rf8 {[%emt 0:03:23]} 25. Qe2 {[%emt 0:01:51]} Rce8 {[%emt 0:10:38]} 26. Qd3 {[%emt 0:04:46]} Kh7 {[%emt 0:01:33]} 27. e4 {[%emt 0:04:24]} Bd6 {[%emt 0:12:00]} 28. Qc3 {[%emt 0:03:09]} Qh6 {[%emt 0:03:44]} 29. Rf1 {[%emt 0:01:31]} Be5 {[%emt 0:01:48]} 30. Qd3 {[%emt 0:01:15]} Bf4 {[%emt 0:00:41]} 31. Rce1 {[%emt 0:01:06]} Bd6 {[%emt 0:00:45]} 32. Nd7 {[%emt 0:00:49]} Rxf1+ {[%emt 0:00:44]} 33. Rxf1 {[%emt 0:00:10]} Re7 {[%emt 0:00:35]} 34. Nf6+ {[%emt 0:01:00]} Kg7 {[%emt 0:00:21]} 35. Qf3 {[%emt 0:00:57]} Bc5+ {[%emt 0:00:57]} 36. Kh1 {[%emt 0:00:17]} Bd4 {[%emt 0:00:39]} 37. exd5 {[%emt 0:01:26]} Qe3 {[%emt 0:00:24]} 38. d6 {[%emt 0:02:38]} Qxf3 {[%emt 0:00:20]} 39. gxf3 {[%emt 0:00:10]} Re2 {[%emt 0:00:50]} 40. Ne4 {[%emt 0:00:38]} Rxa2 {[%emt 0:00:33]} 41. Rc1 {[%emt 0:15:03]} Bb6 {[%emt 0:06:49]} 42. Rxc6 {[%emt 0:01:25]} Kf7 {[%emt 0:04:00]} 43. Rc7+ {[%emt 0:05:49]} Ke6 {[%emt 0:01:11]} 44. Rg7 {[%emt 0:01:15]} Kf5 {[%emt 0:02:08]} 45. Rf7+ {[%emt 0:02:04]} Ke5 {[%emt 0:01:57]} 46. Rf8 {[%emt 0:03:27]} h4 {[%emt 0:02:43]} 47. Rf7 {[%emt 0:03:11]} Rb2 {[%emt 0:02:26]} 48. d7 {[%emt 0:07:08]} Rxb3 {[%emt 0:05:46]} 49. Kg2 {[%emt 0:01:02]} Rb1 {[%emt 0:01:48]} 50. Rf6 {[%emt 0:01:12]} Rd1 {[%emt 0:01:25]} 51. Rc6 {[%emt 0:01:04]} Rxd7 {[%emt 0:01:06]} 52. Rxg6 {[%emt 0:00:10]} Be3 {[%emt 0:01:10]} 53. Kf1 {[%emt 0:00:50]} Bf4 {[%emt 0:00:35]} 54. Ke2 {[%emt 0:00:09]} Rb7 {[%emt 0:00:29]} 55. Rg4 {[%emt 0:00:54]} Rb2+ {[%emt 0:00:51]} 56. Kd3 {[%emt 0:00:09]} Rb3+ {[%emt 0:00:35]} 57. Ke2 {[%emt 0:00:09]} Rb2+ {[%emt 0:01:42]} 58. Kd3 {[%emt 0:00:11]} Rb3+ {[%emt 0:00:22]} 59. Ke2 {[%emt 0:01:10]} Rb2+ {[%emt 0:00:51]} 1/2-1/2

[Event "British Championship 2024"]
[Site "Hull"]
[Date "2024.08.01"]
[Round "6.19"]
[White "Wells, Peter K"]
[Black "Shafi, Declan"]
[Result "1-0"]
[Annotator "RC"]
[ECO "A16"]
[WhiteElo "2354"]
[BlackElo "2222"]
[PlyCount "53"]
[EventDate "2024.07.31"]
[EventCountry "GBR"]
[SourceTitle "playchess.com"]
[Source "ChessBase"]
[SourceQuality "1"]
[TimeControl "40/5400+30:1800+30"]

1. Nf3 {[%emt 0:04:07]} Nf6 {[%emt 0:00:07]} 2. c4 {[%emt 0:00:10]} g6 {[%emt 0:00:30]} 3. Nc3 {[%emt 0:01:06]} Bg7 {[%emt 0:00:15]} 4. e4 {[%emt 0:01:12]} e5 {[%emt 0:00:06]} 5. Nxe5 {[%emt 0:08:48]} O-O {[%emt 0:00:07]} 6. Nf3 {[%emt 0:03:45]} Re8 {[%emt 0:00:07]} 7. d3 {[%emt 0:02:20]} d5 {[%emt 0:00:26]} 8. cxd5 {[%emt 0:03:37]} Nxd5 {[%emt 0:00:07]} 9. Nxd5 {[%emt 0:01:48]} Qxd5 {[%emt 0:00:13]} 10. Be2 {[%emt 0:00:14]} Qd6 {[%emt 0:04:12]} 11. O-O {[%emt 0:06:04]} c5 {[%emt 0:00:25]} 12. Be3 {[%emt 0:21:58]} Nc6 {[%emt 0:01:42]} 13. Qa4 {[%emt 0:16:13]} Bd7 {[%emt 0:08:36]} 14. Qa3 {[%emt 0:03:53]} b6 {[%emt 0:08:07]} 15. Rfd1 {[%emt 0:02:12]} Bg4 {[%emt 0:25:59]} 16. d4 {[%emt 0:01:36]} Rxe4 {[%emt 0:05:46]} 17. dxc5 {[%emt 0:00:42]} Qe7 {[%emt 0:02:16]} 18. Rac1 {[%emt 0:02:08]} b5 {[%emt 0:05:48]} 19. h3 {[%emt 0:02:21]} b4 {[%emt 0:03:21]} 20. Qa6 {[%emt 0:00:31]} Rxe3 {[%emt 0:05:26]} 21. fxe3 {[%emt 0:01:44]} Qxe3+ {[%emt 0:02:20]} 22. Kh1 {[%emt 0:00:20]} Re8 {[%emt 0:02:19]} 23. Qxc6 {[%emt 0:01:16]} Bxb2 {[%emt 0:06:29]} 24. Rc2 {[%emt 0:02:35]} Bc3 {[%emt 0:00:39]} 25. hxg4 {[%emt 0:01:29]} h5 {[%emt 0:01:54]} 26. Bc4 {[%emt 0:01:02]} Kg7 {[%emt 0:02:22]} 27. Re2 {[%emt 0:00:30]} 1-0